Cogmind - Beta 10.2 *** ADVENTURER MODE // 2021.05.10 @ 20:30:25 Player: Trantor Result: Self-destructed Performance ------------- Evolutions (2) 1000 Regions Visited (4) 800 Robots Destroyed (31) 155 Value Destroyed (649) 649 Prototype IDs (2) 40 Alien Tech Used (0) 0 Bonus (0) 0 TOTAL SCORE: 2644 Bonus ------- None Cogmind --------- Core Integrity 340/550 Matter 300/300 Energy 265/265 System Corruption 0% Temperature Cool (0) Movement Flying (32) Location -8/Materials Parts ------- > --- POWER (1) -------- Improved Ion Engine > --- PROPULSION (4) --- VTOL Module VTOL Module Improved Flight Unit > --- UTILITY (4) ------ Enhanced Optical Array Improved Signal Interpreter Hacking Suite > --- WEAPON (2) ------- Autogun Flail > --- INVENTORY (4) ---- Large Matter Pod (150) Advanced Targeting Computer Hardened Light Armor Plating Grenade Launcher Peak State ------------ > --- POWER ------------ Improved Ion Engine > --- PROPULSION ------- VTOL Module VTOL Module VTOL Module Improved Flight Unit > --- UTILITY ---------- Enhanced Optical Array Advanced Sensor Array Improved Signal Interpreter Hacking Suite > --- WEAPON ----------- Autogun Flail > --- INVENTORY -------- Large Matter Pod Advanced Targeting Computer Hardened Light Armor Plating Grenade Launcher [Rating: 27] Favorites ----------- Power Improved Ion Engine Engine Improved Ion Engine Propulsion VTOL Module Treads Light Treads Leg Aluminum Leg Flight Unit VTOL Module Utility Hacking Suite Device Advanced Sensor Array Storage Small Storage Unit Processor Improved Signal Interpreter Hackware Hacking Suite Protection Light Armor Plating Weapon Light Assault Rifle Energy Gun EM Pulse Gun Ballistic Gun Light Assault Rifle Launcher Grenade Launcher Impact Weapon Flail Build | -11 -10 -10 -9 -8 ------- Run | Scr Mat Min Mat Mat Slots Evolved 4 | . . . 2 2 Power . | . . . . . Propulsion 2 | . . . 1 1 Utility 2 | . . . 1 1 Weapon . | . . . . . Parts Attached 46 | . 20 1 16 9 Power 8 | . 4 . 4 . Engine 8 | . 4 . 4 . Core . | . . . . . Reactor . | . . . . . Propulsion 11 | . 7 . 3 1 Treads 2 | . 2 . . . Leg . | . . . . . Wheel . | . . . . . Hover . | . . . . . Flight 9 | . 5 . 3 1 Utility 12 | . 2 . 5 5 Device 2 | . . . 1 1 Storage 1 | . . . 1 . Processor 3 | . . . . 3 Hackware 1 | . . . . 1 Protection 5 | . 2 . 3 . Artifact . | . . . . . Weapon 15 | . 7 1 4 3 Energy Gun 3 | . 3 . . . Energy Cannon . | . . . . . Ballistic Gun 9 | . 3 1 4 1 Ballistic Cannon . | . . . . . Launcher 2 | . 1 . . 1 Special Weapon . | . . . . . Impact Weapon 1 | . . . . 1 Slashing Weapon . | . . . . . Piercing Weapon . | . . . . . Special Melee Weapon . | . . . . . Unidentified Prototypes 2 | . . . 2 . Parts Lost 4 | . 1 . . 3 Power . | . . . . . Propulsion 1 | . . . . 1 Utility 1 | . . . . 1 Weapon 2 | . 1 . . 1 Highest Loss Streak 1 | . 1 . . 1 Average Slot Usage (%) 87 | . 76 85 81 98 Engine 10 | . 13 14 11 9 Treads 1 | . 7 . . . Flight 30 | . 18 28 32 35 Device 5 | . . . 4 8 Storage 1 | . 4 . . . Processor 7 | . . . . 17 Hackware 3 | . . . . 8 Protection 5 | . 4 14 11 . Energy Gun 4 | . 19 . . . Ballistic Gun 13 | . 4 28 20 12 Impact Weapon 1 | . . . . 4 Naked Turns . | . . . . . Heaviest Build 20 | 13 13 10 20 17 Greatest Support 40 | 20 40 10 15 21 Greatest Overweight (x) 4 | . 4 . 1 . Average Overweight (x) . | . . . . . Largest Inventory Capacity 8 | . 6 4 8 4 Average Capacity 4 | . 4 4 4 4 Most Carried 6 | . 6 4 4 4 Average Carried 3 | . 4 4 3 3 Final Capacity 6 | 6 4 4 4 4 Final Carried 6 | 6 4 4 4 4 Class Distribution -------------------- 48% | Mutant 43% | Hacker-Scout 8% | Scavenger-Mutant Dominant Class ---------------- Mutant | -10/Materials Mutant | -10/Mines Mutant | -9/Materials Hacker-Scout | -8/Materials Resources | -11 -10 -10 -9 -8 ----------- Run | Scr Mat Min Mat Mat Matter Collected 1115 | 200 183 47 417 268 Remotely . | . . . . . Salvage Created 1019 | . 183 47 445 344 Parts 79 | . 10 7 37 25 Haulers Intercepted 3 | . . . 2 1 Recyclers Shooed . | . . . . . Parts Field Recycled . | . . . . . Retrieved Matter . | . . . . . Parts Self-Destructed . | . . . . . Prevented . | . . . . . Kills | -11 -10 -10 -9 -8 ------- Run | Scr Mat Min Mat Mat Combat Hostiles Destroyed 24 | . 6 3 10 5 Guns 22 | . 4 3 10 5 AOE 2 | . 2 . . . Classes Destroyed 6 | . 2 . 4 . Hauler 3 | . . . 2 1 Recycler 1 | . 1 . . . Operator 3 | . . . 1 2 Swarmer 13 | . 6 3 4 . Grunt 8 | . . . 5 3 Sentry 3 | . . . 1 2 Best Kill Streak 6 | . 4 3 6 2 Combat Bots Only 6 | . 3 3 6 2 Max Kills in Single Turn 2 | . 2 1 1 1 Gunslinging . | . . . . . Exploded 2 | . 2 . . . Melee . | . . . . . Uniques/NPCs Destroyed . | . . . . . Combat | -11 -10 -10 -9 -8 -------- Run | Scr Mat Min Mat Mat Damage Taken 901 | . 95 36 273 497 Core 278 | . . 4 64 210 Absorbed by Shields . | . . . . . Core Remaining (%) 94 | 100 . 98 84 . Volleys Fired 105 | . 5 4 52 44 Largest 2 | . 2 2 2 2 Hottest 80 | . 80 40 43 43 Shots Fired 163 | . 9 8 91 55 Gun 162 | . 9 8 91 54 Cannon . | . . . . . Launcher 1 | . . . . 1 Special . | . . . . . Kinetic 153 | . . 8 91 54 Thermal . | . . . . . Explosive 1 | . . . . 1 Electromagnetic 9 | . 9 . . . Robot Hit Streak 25 | . 5 4 22 25 Robot Miss Streak 2 | . 1 2 2 1 Penetration Max . | . . . . . Secondary Targets 1 | . . 1 . . Max Gunslinging Chain 1 | . . 1 . . Shots Hit Robots 135 | . 6 5 73 51 Core Hits 60 | . 7 4 30 19 Critical Hits 2 | . . . . 2 Critical Kills 1 | . . . . 1 Critical Parts Destroyed 1 | . . . . 1 Melee Attacks 3 | . . . . 3 Impact 3 | . . . . 3 Slashing . | . . . . . Piercing . | . . . . . Sneak Attacks . | . . . . . Combat Hostiles . | . . . . . Follow-up Attacks . | . . . . . Damage Inflicted 1612 | . 187 40 665 720 Guns 1478 | . 84 40 665 689 Cannons . | . . . . . Explosions 134 | . 103 . . 31 Melee . | . . . . . Ramming . | . . . . . Kinetic 1394 | . . 40 665 689 Thermal 103 | . 103 . . . Explosive 31 | . . . . 31 Electromagnetic 84 | . 84 . . . Impact . | . . . . . Slashing . | . . . . . Piercing . | . . . . . Highest Corruption . | . . . . . Average Corruption . | . . . . . Corruption Purged . | . . . . . Overload Shots . | . . . . . Overflow Damage 8 | . 8 . . . Projectiles . | . . . . . Explosions 8 | . 8 . . . Melee . | . . . . . Knockbacks . | . . . . . Impact . | . . . . . Kinetic . | . . . . . Secondary . | . . . . . Self-Inflicted Damage 50 | . 26 . . 24 Shots 2 | . 1 . . 1 Rammed . | . . . . . Targets Rammed . | . . . . . Kicked . | . . . . . Crushed . | . . . . . Highest Temperature 40 | . 40 10 28 23 Average Temperature 9 | . 22 7 8 6 Received Heat Transfer 360 | . 18 . 78 264 Siege Activations . | . . . . . Robots Corrupted . | . . . . . Combat Hostiles . | . . . . . Parts Fried . | . . . . . Impact Corruptions . | . . . . . Robots Melted . | . . . . . Combat Hostiles . | . . . . . Parts Melted . | . . . . . Heat Transferred 150 | . 150 . . . Parts Sabotaged . | . . . . . Parts Stolen . | . . . . . Parts Stripped . | . . . . . Power Chain Reactions 1 | . 1 . . . Missiles Intercepted . | . . . . . Alert | -11 -10 -10 -9 -8 ------- Run | Scr Mat Min Mat Mat Peak Influence 393 | . 301 70 393 261 Initial 69 | . . . 22 69 Average 141 | . 111 63 180 135 Maximum Alert Level 1 | . 1 . 1 1 Low Security (%) 70 | . 75 100 53 77 Level 1 29 | . 24 . 46 22 Level 2 . | . . . . . Level 3 . | . . . . . Level 4 . | . . . . . Level 5 . | . . . . . High Security . | . . . . . Max Security . | . . . . . Squads Dispatched 5 | . . . 4 1 Investigation 2 | . . . 2 . Extermination . | . . . . . Reinforcement 3 | . . . 2 1 Assault . | . . . . . Garrison . | . . . . . Intercept . | . . . . . Construction Impeded . | . . . . . Haulers Reinforced . | . . . . . Stealth | -11 -10 -10 -9 -8 --------- Run | Scr Mat Min Mat Mat Distress Signals 4 | . 1 . 1 2 Communications Jammed . | . . . . . Distress Signals . | . . . . . Times Spotted 77 | . 19 5 38 15 Peak Tracking Total 13 | . 7 3 13 8 Tactical Retreats 8 | . 3 . 3 2 Traps | -11 -10 -10 -9 -8 ------- Run | Scr Mat Min Mat Mat Traps Triggered 1 | . 1 . . . Indirectly . | . . . . . Trap Hack Attempts . | . . . . . Triggered . | . . . . . Disarmed . | . . . . . Reprogrammed . | . . . . . Reused . | . . . . . Traps Extracted . | . . . . . Installed . | . . . . . Triggered . | . . . . . Machines | -11 -10 -10 -9 -8 ---------- Run | Scr Mat Min Mat Mat Machines Disabled 1 | . 1 . . . Max in Single Turn 1 | . 1 . . . Garrison Access 1 | . . . . 1 Machines Sabotaged . | . . . . . Garrisons Compromised . | . . . . . Overloaded Fab Kills . | . . . . . Fab Network Shutdowns . | . . . . . Hacking | -11 -10 -10 -9 -8 --------- Run | Scr Mat Min Mat Mat Machines Accessed 17 | . 6 . 8 3 Terminals 16 | . 6 . 8 2 Fabricators . | . . . . . Repair Stations . | . . . . . Recycling Units . | . . . . . Scanalyzers . | . . . . . Garrison Access 1 | . . . . 1 Total Hacks 53 | . 14 . 28 11 Successful 30 | . 6 . 18 6 Failed 23 | . 8 . 10 5 Catastrophic 2 | . 2 . . . Database Lockouts . | . . . . . Manual 48 | . 14 . 26 8 Terminals 51 | . 14 . 28 9 Fabricators . | . . . . . Repair Stations . | . . . . . Recycling Units . | . . . . . Scanalyzers . | . . . . . Garrison Access 2 | . . . . 2 Terminal Hacks 14 | . 4 . 7 3 Record 1 | . . . 1 . Part Schematic 3 | . . . 1 2 Robot Analysis 2 | . 1 . . 1 Branch Access Points 1 | . 1 . . . Terminal Index 2 | . . . 2 . Scanalyzer Index 1 | . . . 1 . Unreport Threat 3 | . 2 . 1 . Recall Assault 1 | . . . 1 . Fabricator Hacks . | . . . . . Repair Station Hacks . | . . . . . Recycling Unit Hacks . | . . . . . Scanalyzer . | . . . . . Garrison Access Hacks 1 | . . . . 1 Seal Access 1 | . . . . 1 Unauthorized Hacks 15 | . 2 . 11 2 Terminals 15 | . 2 . 11 2 Track 2 | . . . 2 . Assimilate 3 | . . . 2 1 Botnet 7 | . 2 . 4 1 Operators 3 | . . . 3 . Fabricators . | . . . . . Repair Stations . | . . . . . Recycling Units . | . . . . . Scanalyzers . | . . . . . Garrison Access . | . . . . . Data Cores Recovered 1 | . . . . 1 Used . | . . . . . Hacking Detections 14 | . 6 . 6 2 Full Trace Events 2 | . . . 2 . Feedback Events . | . . . . . Feedback Blocked . | . . . . . Robot Schematics Acquired . | . . . . . Robots Built . | . . . . . Matter . | . . . . . Time . | . . . . . Total Robot Build Rating . | . . . . . Part Schematics Acquired 3 | . . . 1 2 Parts Built . | . . . . . Matter . | . . . . . Time . | . . . . . Total Part Build Rating . | . . . . . Parts Repaired . | . . . . . Time . | . . . . . Parts Recycled . | . . . . . Recycled Matter . | . . . . . Retrieved Matter . | . . . . . Retrieved Components . | . . . . . Parts Scanalyzed . | . . . . . Part Schematics Acquired . | . . . . . Parts Damaged . | . . . . . Bothacking | -11 -10 -10 -9 -8 ------------ Run | Scr Mat Min Mat Mat Used RIF Installer . | . . . . . Robots Hacked . | . . . . . Non-combat . | . . . . . Combat . | . . . . . Robot Hacks Applied . | . . . . . Relay Couplers Released . | . . . . . Robots Rewired . | . . . . . Allies Hacked . | . . . . . Hacks Repelled . | . . . . . Allies | -11 -10 -10 -9 -8 -------- Run | Scr Mat Min Mat Mat Total Allies 3 | . . . 2 1 Largest Group 2 | . . . 2 1 Highest-Rated Group 20 | . . . 20 10 Highest-Rated Ally 10 | . . . 10 10 Total Orders . | . . . . . Ally Attacks . | . . . . . Total Damage . | . . . . . Kills . | . . . . . Allies Corrupted . | . . . . . Allies Melted . | . . . . . Intel | -11 -10 -10 -9 -8 ------- Run | Scr Mat Min Mat Mat Robot Analysis Total 2 | . 1 . . 1 Derelict Logs Recovered . | . . . . . Drone Launches . | . . . . . Drone Recoveries . | . . . . . Exploration | -11 -10 -10 -9 -8 ------------- Run | Scr Mat Min Mat Mat Turns Passed 1318 | . 309 35 402 572 Spaces Moved 1531 | 1 420 47 525 538 Core 3 | . 3 . . . Treads 36 | . 36 . . . Legs 12 | 1 11 . . . Wheels . | . . . . . Hover . | . . . . . Flight 1480 | . 370 47 525 538 Fastest Speed 29 | 120 37 37 34 29 Average Speed 39 | 120 58 37 34 29 Slowest Speed 280 | 120 280 37 117 32 Overloaded Moves . | . . . . . Propulsion Burnouts . | . . . . . Robots Hopped 9 | . . 2 4 3 Cave-ins Triggered . | . . . . . Exploration Rate (%) 32 | 2 61 10 40 47 Regions Visited 4 Branch Regions 1 Pre-discovered Areas . | . . . . . Known Exits Taken 1 | . 1 . . . Unknown Exits Taken 3 | 1 . 1 1 . Scrap Searched . | . . . . . Spaces Dug 3 | . . . . 3 Terrain Destroyed 14 | . 2 . . 12 Melee 3 | . . . . 3 Projectile . | . . . . . AOE 11 | . 2 . . 9 Terrain Rammed . | . . . . . Walls Destroyed . | . . . . . Machines Disabled . | . . . . . Actions | -11 -10 -10 -9 -8 --------- Run | Scr Mat Min Mat Mat Total 2106 | . 481 56 670 899 Wait 379 | . 4 6 65 304 Move 1510 | . 419 43 516 532 Hop 8 | . . 1 4 3 Pick Up 12 | . 8 . 2 2 Fast Attach 26 | . 13 . 9 4 Attach 6 | . 2 . 1 3 Detach 4 | . 2 . 1 1 Swap 14 | . 5 1 6 2 Drop 39 | . 23 1 14 1 Fire 105 | . 5 4 52 44 Melee 3 | . . . . 3 Ram . | . . . . . Kick . | . . . . . Crush . | . . . . . Escape Stasis . | . . . . . Rewire . | . . . . . Trap . | . . . . . Miscellaneous . | . . . . . Route ------- -11/Scrapyard -10/Materials (discovered 3 exits: *Mat / *Min x2) -10/Mines -9/Materials -8/Materials History --------- Turn | Location | Event 1 | -11/Scrapyard | Discovered new exit (range 0) 1 | -11/Scrapyard | Entered Materials 124 | -10/Materials | Discovered new exit (range 14) 149 | -10/Materials | Discovered new exit (range 6) 153 | -10/Materials | Identified exit to Mines 310 | -10/Materials | Entered Mines 331 | -10/Mines | Discovered new exit (range 11) 345 | -10/Mines | Entered Materials 345 | -9/Materials | Evolved 2 slots: Propulsion x1, Utility x1 589 | -9/Materials | Build established: Mutant 710 | -9/Materials | Discovered new exit (range 16) 747 | -9/Materials | Entered another Materials area 747 | -8/Materials | Evolved 2 slots: Propulsion x1, Utility x1 1041 | -8/Materials | Build established: Hacker-Scout 1319 | -8/Materials | Self-destructed Last Messages --------------- 01219_ O-16 Technician uses terminal to summon reinforcements. 01219_ ALERT: Hostiles spotted, dispatching reinforcements to Terminal M010. 01219_ O-16 Technician locks terminal. 01219_ O-16 Technician destroyed. 01221_ Acquired 16 matter. 01228_ O-16 Technician suffers critical hit. 01228_ O-16 Technician destroyed. 01230_ Acquired data core, extracted dynamic key. 01230_ Decrypted 6 local trap positions from data. 01230_ Discarded Visual Processing Unit. 01233_ Acquired 14 matter. 01266_ Fusion Modulator explodes. 01277_ VTOL Module destroyed. 01278_ G-47 Trooper destroyed. 01309_ Adv. Sensor Array destroyed. 01311_ Y-45 Defender destroyed. 01312_ G-50 Soldier destroyed. 01315_ Acquired 67 matter. 01316_ Acquired 23 matter. Map ----- +----------------------------------------------------+ | ?????????????????????????????????????????????????? | | ?????????????????????????????????????????????????? | | ?????????????????????????????????????????????????? | | ?????????????????????????????????????????????????? | | ?????????????????????????????????????????????????? | | ?????????????????????????????????????????????????? | | ?????????????????????????????????????????????????? | | ?????????????????????????????????????????????????? | | ?????????????????????????????????????????????????? | | ?????????????????????????????????????????????????? | | ?????????????????????????????????????????????????? | | ?????????????????????????????????????????????????? | | ?????????????????????????????????????????????????? | | ??????????????????#######????????????????????????? | | ??????????????????? ?????????????????######## | | ??????????????????? ??????????????????# + | | ???????????????????# ??????????????????# ## | | ???????????????????# ??????????????????# ## | | ???????????????????# ??????????????????# ##== | | ???????????????????# #??????????????????# ##== | | ???????????????????# #??????????????????# #### | | ???????????????????# #??????????????????# #?## | | ???????????????????# #####################+### | | ???????????????????# ^^ | | ???????????????????# ==! ^ t | | ???????????????????# !%%=@ | | ???????????????????####+######+#;;;;;;;;;###+### | | ???????????????????# [[*==## " " ## | | ???????????????????# ** ## ! " " #? | | ???????????????????#"""= ## " " #?? | | ???????????????????#""" !## """ " " ] #?? | | ???????????????????#""" ## """ " !" #?? | | ???????????????????# ## """ " " #?? | | ???????????????????######### """"""""#######?? | | ???????????????????????????# ! # ###???????? | | ???????????????????????????# #######?????????? | | ???????????????????????????# "T" #???????????????? | | ???????????????????????????# """ ????????????????? | | ???????????????????????????######????????????????? | | | | | | | | | | | | | | | | | | | | | | | +----------------------------------------------------+ Best States ------------- Heat Dissipation 41 Energy Generation 14 Energy Capacity 280 Matter Stores 300 Matter Capacity 300 Sight Range 22 Robot Scan Range 16 Terrain Scan Density 10 Armor Coverage 300 Resistance: KI 20 Resistance: TH 20 Resistance: EX 20 Resistance: EM 20 Resistance: I 20 Resistance: S 20 Resistance: P 20 Evasion (%) 64 Recoil Reduction 2 Offensive Hacking 20 Item Schematics ----------------- VTOL Module | -9/Materials | Hacked Hacking Suite | -8/Materials | Hacked System Shield | -8/Materials | Hacked Robot Schematics ------------------ None Fabricated ------------ Nothing Alien Tech Used ----------------- None Achievements -------------- None Challenges ------------ None Game ------ Seed ChainFluxPurifier Manual? 0 Play Time 00:36:22 Cumulative 90.9 hours Start 2021.05.10 @ 19:51:02 End 2021.05.10 @ 20:30:25 Sessions 2 Manual Loads 0 Difficulty Adventurer Special Mode None Game No. 56 Rogue 34 Adventurer 22 Explorer 0 Win Type - Total 0 Types 0/0/0/0/0/0/0/0/0 Lore% 38 Gallery% 38 Achievement% 33 Wizard Run 0 Options --------- ASCII 0 Keyboard 1 Movement Vi Keybinds 1 Fullscreen 2 Font 18/SmallcapsGlow Map View 76x50 Tactical HUD 1 Map Filters NONE Filters NONE Steam 1 RUN: db46ef49-e96b-4784-9d0b-296e6e353a66